bitfinex-derivatives/quotes_ETHF0:USTF0_20251119
["timestamp","ask_amount","ask_price","bid_price","bid_amount"]
[1763584778319,3.2078,2920.4,2920.3,0.4695]
[1763584779024,0.00364443,2920.6,2920.5,0.7311]
[1763584779320,1e-08,2920.8,2920.7,0.4695]
[1763584780119,0.00298537,2920.8,2920.7,0.4695]
[1763584780909,3.21078537,2920.8,2920.7,0.4695]
[1763584781116,0.4491,2920.6,2920.3,0.00513531]
[1763584781316,0.00298537,2920.8,2920.3,0.47463531]
[1763584782818,3.2078,2920.5,2920.3,0.47463531]
[1763584783120,3.21078537,2920.8,2920.3,0.47463531]
[1763584783615,3.21078537,2920.8,2920.0,2.50032373]
[1763584783819,3.21078537,2920.8,2920.0,0.7205622]
[1763584784125,3.21078537,2920.8,2920.0,2.50032373]
[1763584784424,3.21078537,2920.8,2920.0,0.7205622]
[1763584784626,3.2078,2920.5,2920.0,0.7205622]
[1763584785023,3.2078,2920.5,2920.0,2.50032373]
[1763584786424,3.2078,2920.5,2920.4,0.4695]
[1763584787933,3.6569,2920.5,2920.4,0.4695]
[1763584789017,3.24543416,2920.5,2920.4,0.4695]
[1763584789417,3.24543416,2920.5,2920.0,2.50032373]
[1763584789418,3.51373416,2920.5,2920.0,2.50032373]
[1763584789625,3.06463416,2920.5,2920.0,0.7311]
[1763584790120,3.06463416,2920.5,2920.0,2.51086153]
[1763584790630,3.06463416,2920.5,2920.0,0.7311]
[1763584791329,3.21078537,2920.8,2920.0,2.59676153]
[1763584791832,3.21078537,2920.8,2920.1,1.77976153]
[1763584795439,3.21078537,2920.8,2920.7,0.4695]
[1763584798732,0.00298537,2920.8,2920.7,0.4695]
[1763584798934,3.2078,2921.1,2920.7,0.4695]
[1763584799836,3.2078,2921.4,2921.0,0.7311]
[1763584800032,3.21108359,2921.4,2921.3,0.4695]
[1763584800236,3.66018359,2921.4,2921.3,0.47372141]
[1763584800639,3.21108359,2921.4,2921.3,0.47372141]
[1763584800838,3.66018359,2921.4,2921.3,0.47372141]
[1763584801040,3.66018359,2921.4,2921.3,0.00422141]
[1763584801232,0.4491,2920.9,2920.8,1.00360669]
[1763584801434,3.6569,2920.9,2920.0,5.85934352]
[1763584801736,3.6569,2920.9,2920.0,3.4694]
[1763584802132,0.1776,2920.5,2919.7,5.59774352]
[1763584802335,0.1776,2920.5,2919.7,3.21042599]
[1763584805436,0.4488,2919.8,2919.7,3.21042599]
[1763584806146,3.6566,2919.8,2918.8,2.38994352]
[1763584806437,0.00513531,2919.7,2918.8,5.59774352]
[1763584806632,0.00513531,2919.7,2919.6,0.4128]
[1763584807034,0.00513531,2919.7,2919.6,0.41702867]
[1763584807239,0.00513531,2919.7,2919.6,2.79597045]
[1763584807433,0.00513531,2919.7,2919.6,0.41702867]
[1763584809049,3.2078,2920.2,2919.6,0.41702867]
[1763584809943,3.21293531,2920.2,2919.6,0.42216398]
[1763584810346,3.21293531,2920.2,2919.7,3.2078]
[1763584810554,0.00513531,2920.2,2920.1,0.4128]
[1763584811348,0.00513531,2920.2,2920.1,3.6206]
[1763584811859,3.2078,2920.8,2920.7,0.4128]
[1763584812153,3.2078,2921.2,2920.7,0.4128]
[1763584812358,0.00328359,2921.4,2921.1,0.4128]
[1763584812558,0.00328359,2921.4,2921.0,0.2657]
[1763584812559,0.00328359,2921.4,2921.3,0.4128]
[1763584813564,0.45208359,2921.4,2920.5,5.86344352]
[1763584813859,0.2535,2921.0,2920.3,0.55536]
[1763584814549,3.2078,2921.1,2920.3,0.55536]
[1763584815251,0.2535,2921.0,2920.2,3.2078]
[1763584815653,3.2078,2920.8,2920.2,3.2078]
[1763584815849,3.2078,2920.8,2920.0,2.65564352]
[1763584816060,3.2078,2920.8,2920.0,0.2657]
[1763584816557,3.2078,2920.5,2920.0,0.2657]
[1763584816750,3.4613,2920.5,2919.9,3.2078]
[1763584817151,3.2078,2920.9,2920.0,0.2657]
[1763584817753,3.2078,2920.5,2920.0,0.2657]
[1763584818151,3.2078,2920.9,2920.0,0.2657]
[1763584819164,3.2078,2920.6,2920.0,0.2657]
[1763584820662,0.2535,2920.5,2920.0,0.2657]
[1763584820864,3.2078,2920.6,2920.0,0.2657]
[1763584821255,3.2078,2920.6,2920.0,2.07020493]
[1763584821564,0.2535,2920.5,2920.0,2.07020493]
[1763584821860,0.4488,2920.0,2919.9,5.01230493]
[1763584822056,0.03731667,2920.0,2919.9,3.2078]
[1763584822661,0.03731667,2920.0,2919.9,3.6206]
[1763584822862,0.2535,2920.5,2920.0,0.2657]
[1763584823058,0.4488,2920.1,2920.0,0.2657]
[1763584824162,0.4488,2920.1,2919.7,1.80450493]
[1763584824462,0.4488,2919.7,2919.6,1.81386891]
[1763584824862,0.00513531,2919.9,2919.6,0.42216398]
[1763584825056,0.00513531,2919.9,2919.8,0.4128]
[1763584826167,0.00513531,2919.9,2919.8,3.6206]
[1763584826961,3.2078,2920.9,2920.1,0.5554]
[1763584827163,3.2078,2920.9,2920.3,3.2078]
[1763584827366,3.2078,2921.5,2920.8,0.4261]
[1763584827756,3.2078,2921.5,2920.8,2.22888008]
[1763584827958,0.0084189,2921.4,2920.8,2.22888008]
[1763584829160,0.0084189,2921.4,2920.8,0.4261]
[1763584830965,0.0084189,2921.4,2921.3,0.4261]
[1763584831372,0.4366,2921.1,2920.7,1.80278008]
[1763584831575,3.2078,2921.0,2920.5,0.2736]
[1763584832362,3.2078,2921.3,2920.5,0.6836]
[1763584833471,3.2078,2921.0,2920.5,0.6836]
[1763584836770,3.2078,2921.3,2920.5,3.8914]
[1763584837075,0.0084189,2921.4,2921.2,0.4223]
[1763584837269,3.2078,2921.3,2921.2,0.4223]
[1763584837476,3.6336,2921.3,2921.0,0.2613]
[1763584838775,0.4258,2921.1,2921.0,0.2613]
[1763584839272,0.4258,2921.1,2920.5,2.61940008]
[1763584839571,3.2078,2920.7,2920.6,0.4223]
[1763584839780,0.4258,2920.3,2920.2,1.80278008]
[1763584839976,0.4258,2920.1,2920.0,1.80278008]
[1763584840168,0.4258,2919.8,2919.7,1.80278008]
[1763584840370,0.4258,2919.7,2919.6,0.00936398]
[1763584841482,3.6336,2919.7,2919.6,0.00936398]
[1763584844877,3.6336,2919.7,2919.0,0.2613]
[1763584845184,3.6336,2919.1,2918.6,3.2078]
[1763584845683,3.6336,2919.1,2918.5,0.2613]
[1763584846174,0.00808963,2919.1,2919.0,0.6836]
[1763584846974,0.55535,2920.4,2919.0,0.6836]
[1763584846975,3.2078,2920.2,2919.0,6.6836]
[1763584847171,3.2078,2920.8,2920.5,0.2613]
[1763584847371,3.2078,2921.6,2920.7,0.4223]
[1763584847576,0.1319,2922.0,2921.0,0.2613]
[1763584847577,3.2078,2921.9,2921.0,0.2613]
[1763584847782,3.2078,2921.6,2921.0,0.2613]
[1763584847977,3.2078,2921.9,2921.0,0.26487441]
[1763584848185,3.2078,2921.5,2921.0,0.27000972]
[1763584848479,0.00790254,2921.6,2921.0,0.27000972]
[1763584850377,3.2078,2921.5,2921.0,0.27000972]
[1763584850778,0.00790254,2921.6,2921.0,0.27000972]
[1763584851385,3.2078,2921.5,2921.0,0.27000972]
[1763584851689,0.00790254,2921.6,2921.0,0.27000972]
[1763584858490,0.00790254,2921.6,2921.0,3.47780972]
[1763584860280,3.2078,2922.1,2921.5,0.6836]
[1763584861390,3.2078,2921.8,2921.5,0.6836]
[1763584861690,0.4258,2921.6,2921.1,3.2078]
[1763584862078,3.2078,2921.8,2921.7,0.4144]
[1763584862287,3.21675849,2922.1,2922.0,0.6503]
[1763584862890,3.62955849,2922.1,2921.5,0.2359]
[1763584863086,3.2078,2921.8,2921.5,0.2359]
[1763584863685,3.2078,2921.8,2921.7,0.4144]
[1763584864280,3.6206,2921.8,2921.5,0.2359]
[1763584864990,0.00895849,2922.1,2921.7,0.4144]
[1763584869296,0.4128,2921.8,2921.7,0.4144]
[1763584869689,3.2078,2922.0,2921.7,0.4144]
[1763584870591,3.2078,2922.0,2921.5,0.2359]
[1763584870592,0.4128,2921.8,2921.5,0.2359]
[1763584870994,0.4128,2921.6,2921.2,3.2078]
[1763584871696,3.2078,2922.0,2921.5,0.6503]
[1763584872792,0.4128,2921.6,2921.5,0.6503]
[1763584872994,0.4128,2921.6,2921.2,3.2078]
[1763584874099,3.2078,2922.0,2921.9,0.4144]
[1763584874392,3.6206,2922.0,2921.9,0.4144]
[1763584874892,0.00895849,2922.1,2922.0,0.6503]
[1763584876692,0.42175849,2922.1,2922.0,0.6503]
[1763584878200,0.42175849,2922.1,2922.0,0.2359]
[1763584879097,0.00895849,2922.1,2922.0,0.6503]
[1763584879794,0.42175849,2922.1,2921.5,3.4437]
[1763584880298,0.4128,2921.6,2921.5,3.4437]
[1763584880798,0.4128,2921.6,2921.2,3.2078]
[1763584880997,0.4128,2921.1,2921.0,0.00870972]
[1763584881597,3.76288,2921.8,2921.0,0.00870972]
[1763584881598,3.2078,2921.8,2921.0,0.65900972]
[1763584881798,0.82473378,2921.7,2921.0,0.65900972]
[1763584881998,0.82473378,2921.6,2921.0,0.65900972]
[1763584882198,3.2078,2921.8,2921.0,0.65900972]
[1763584882396,0.82466403,2921.7,2921.0,0.65900972]
[1763584882600,3.2078,2921.8,2921.0,0.65900972]
[1763584882800,0.8246589,2921.7,2921.0,0.65900972]
[1763584883000,3.2078,2921.8,2921.0,0.65900972]
[1763584883203,0.82468411,2921.7,2921.0,0.65900972]
[1763584883400,3.2078,2921.8,2921.0,0.65900972]
[1763584883601,0.82463623,2921.7,2921.0,0.65900972]
[1763584883902,3.2078,2921.8,2921.0,0.65900972]
[1763584884101,0.82463673,2921.7,2921.0,0.65900972]
[1763584884308,3.2078,2921.8,2921.0,0.65900972]
[1763584884498,0.4128,2921.1,2921.0,0.00870972]
[1763584884995,0.77883,2921.0,2920.0,0.2359]
[1763584885200,3.2078,2920.6,2920.0,0.2359]
[1763584885798,3.21293531,2920.6,2920.0,0.24483675]
[1763584886511,0.00513531,2920.6,2920.5,0.6338]
[1763584886709,3.2078,2921.5,2920.5,0.6338]
[1763584886905,3.2078,2921.5,2921.4,0.3576]
[1763584887111,0.3839,2921.1,2920.5,0.2194]
[1763584887409,3.2078,2920.8,2920.0,0.24483675]
[1763584887608,3.2078,2920.5,2920.0,0.24483675]
[1763584887806,0.3839,2920.1,2920.0,0.00893675]
[1763584888217,0.1344,2920.0,2919.2,3.2078]
[1763584888512,0.3839,2919.3,2919.2,3.2078]
[1763584889109,0.38807283,2919.3,2919.2,3.21168962]
[1763584890714,0.00417283,2919.3,2919.2,0.36148962]
[1763584890910,0.38807283,2919.3,2919.2,0.00388962]
[1763584891107,0.3839,2918.6,2918.2,3.2078]
[1763584891307,0.3839,2918.3,2917.9,3.2078]
[1763584891709,3.5917,2918.3,2917.5,3.4272]
[1763584892114,3.5917,2918.3,2918.0,0.22191236]
[1763584892306,0.3839,2918.3,2918.0,0.22191236]
[1763584892710,0.00513531,2918.4,2918.0,0.00251236]
[1763584892711,0.3839,2918.1,2918.0,0.00251236]
[1763584893414,0.3775,2918.0,2917.5,0.2065]
[1763584893719,3.2078,2918.2,2917.5,0.2065]
[1763584894111,3.2078,2917.9,2917.5,0.2065]
[1763584894307,0.3775,2917.5,2916.5,0.2194]
[1763584894610,3.2078,2917.2,2916.5,0.2194]
[1763584895313,3.21128316,2917.2,2916.5,0.22312117]
[1763584895819,0.3775,2916.6,2916.5,0.00372117]
[1763584896209,0.3775,2916.2,2915.7,3.2078]
[1763584896608,3.2078,2916.7,2916.3,0.3558]
[1763584897013,5.58403022,2916.4,2914.6,5.58403022]
[1763584897222,0.00513531,2916.8,2914.5,0.2065]
[1763584897223,3.2078,2916.0,2915.4,0.2065]
[1763584897517,3.2078,2916.3,2916.0,0.2065]
[1763584898104,3.2078,2916.6,2916.0,0.2065]
[1763584898411,3.2078,2916.6,2916.5,0.3558]
[1763584898610,0.00513531,2916.8,2916.7,0.3558]
[1763584899112,0.00513531,2916.8,2916.6,0.2065]
[1763584899810,0.00513531,2916.8,2916.0,0.2065]
[1763584900013,3.2078,2916.3,2916.0,0.2065]
[1763584903114,3.2078,2916.3,2916.2,0.3558]
[1763584903417,3.2078,2916.3,2916.0,0.2065]
[1763584905721,5.58403022,2916.3,2915.4,0.2065]
[1763584906014,3.2078,2915.7,2915.4,0.2065]
[1763584910623,3.2078,2915.7,2915.6,0.3558]
[1763584911325,2.37623022,2916.7,2915.6,0.3558]
[1763584911326,3.2078,2916.0,2915.6,0.3558]
[1763584912022,3.2078,2915.8,2915.4,0.2065]
[1763584912335,5.58403022,2915.8,2915.4,0.2065]
[1763584912620,3.2078,2915.5,2915.4,0.2065]
[1763584913024,3.2078,2915.5,2915.0,0.21092676]
[1763584913231,3.2078,2915.2,2915.0,0.21092676]
[1763584914030,9.2078,2915.2,2914.0,0.2065]
[1763584914322,9.2078,2915.2,2913.0,0.2065]
[1763584914323,5.58403022,2914.1,2913.0,0.2065]
[1763584914530,3.2078,2913.6,2913.0,0.2065]
[1763584915030,3.21101696,2913.6,2913.5,0.20903753]
[1763584915228,0.00321696,2913.6,2913.5,0.20903753]
[1763584915424,0.00321696,2913.6,2913.5,0.56483753]
[1763584915924,0.00321696,2913.6,2913.5,0.20903753]
[1763584916323,0.00321696,2913.6,2913.5,0.00253753]
[1763584921041,3.2078,2912.8,2912.0,0.2065]
[1763584921241,3.2078,2912.1,2912.0,0.5623]
[1763584921944,3.2078,2912.1,2912.0,0.56585769]
[1763584922446,3.2078,2912.1,2912.0,0.21005769]
[1763584922744,3.2078,2912.1,2910.6,1.5395]
[1763584922745,3.2078,2912.1,2911.8,0.2197]
[1763584922944,3.2078,2911.9,2911.8,0.2197]
[1763584923141,3.2078,2911.9,2910.6,2.58273022]
[1763584923342,3.2078,2911.3,2910.6,0.2065]
[1763584923647,3.21225077,2911.3,2911.2,0.00261384]
[1763584923942,3.21225077,2911.3,2911.2,0.59411384]
[1763584924143,3.21225077,2911.3,2911.2,0.22231384]
[1763584924736,3.2078,2911.9,2911.8,0.5915]
[1763584925842,3.21185186,2911.9,2911.8,0.5915]
[1763584926050,3.2078,2912.5,2911.8,3.7993]
[1763584926245,1.22355337,2913.7,2911.8,3.7993]
[1763584926246,3.2078,2913.9,2912.6,0.3718]
[1763584926546,3.2078,2913.9,2912.4,3.4275]
[1763584926547,3.2078,2913.6,2913.0,0.2197]
[1763584926939,5.58403022,2913.9,2913.0,0.2197]
[1763584927246,3.2078,2913.6,2913.2,0.0051443]
[1763584928049,3.2078,2913.3,2913.2,0.0051443]
[1763584928349,3.2129443,2913.7,2913.2,0.0051443]
[1763584929145,3.2078,2913.3,2913.2,0.0051443]
[1763584929341,3.2078,2913.3,2912.4,0.2197]
[1763584929550,0.0051443,2913.7,2912.4,0.2197]
[1763584929551,3.2078,2912.5,2912.4,0.2197]
[1763584929742,3.2078,2912.8,2912.4,0.2197]
[1763584930146,5.58403022,2913.1,2912.4,0.2197]
[1763584930349,3.2078,2912.5,2912.4,0.2197]
[1763584930545,3.2078,2912.9,2912.4,0.2197]
[1763584930846,5.58403022,2913.2,2912.4,0.2197]
[1763584931550,3.2078,2912.6,2912.4,0.2197]
[1763584931752,3.2078,2912.9,2912.4,0.2197]
[1763584932751,3.2078,2913.2,2913.0,0.2197]
[1763584933356,3.2078,2913.2,2912.4,0.2197]
[1763584933542,3.2078,2912.6,2912.4,0.2197]
[1763584933943,2.37623022,2912.5,2911.8,0.2197]
[1763584934353,3.2078,2912.2,2911.8,0.2197]
[1763584934943,3.2078,2912.5,2912.4,0.2197]
[1763584935149,3.2078,2912.8,2912.4,0.2197]
[1763584935754,3.2078,2912.8,2912.7,0.3718]
[1763584935954,3.2078,2913.1,2913.0,0.5915]
[1763584936557,3.2078,2913.4,2913.0,0.5915]
[1763584936757,3.2129443,2913.7,2913.0,3.7993]
[1763584936955,3.2078,2913.4,2913.0,0.5915]
[1763584937750,3.2129443,2913.7,2913.0,0.5915]
[1763584937951,3.2129443,2913.7,2913.6,0.2197]
[1763584938159,3.2129443,2913.7,2913.6,0.2235428]
[1763584938849,3.2129443,2913.7,2913.6,0.0038428]
[1763584939355,4.03581791,2913.7,2913.0,0.2197]
[1763584939551,3.2078,2913.5,2913.0,0.2197]
[1763584939751,3.2078,2913.2,2913.0,0.2197]
[1763584940259,3.2078,2913.2,2913.0,0.00334863]
[1763584940559,3.2078,2913.5,2913.0,0.22304863]
[1763584941162,3.2078,2913.2,2913.0,0.22304863]
[1763584942364,0.82597124,2913.1,2913.0,0.00334863]
[1763584943262,1.74739448,2913.1,2913.0,4.863e-05]
[1763584943449,1.74739448,2913.1,2912.4,0.2197]
[1763584943650,3.2078,2912.9,2912.4,0.2197]
[1763584943850,0.82597124,2912.8,2912.4,0.2197]
[1763584944257,3.2078,2912.5,2912.4,0.2197]
[1763584944457,4.03377124,2912.5,2912.4,0.22289909]
[1763584945258,0.82597124,2912.5,2912.4,0.22289909]
[1763584945859,1.74739448,2912.7,2912.4,0.22289909]
[1763584946058,0.82597124,2912.6,2912.5,0.3718]
[1763584946257,0.92142324,2913.0,2912.6,0.4792]
[1763584946466,1.74962262,2913.0,2912.6,0.4792]
[1763584946771,0.82819938,2912.9,2912.6,0.4792]
[1763584946971,4.12922324,2913.1,2912.7,0.4792]
[1763584946972,0.82819938,2912.8,2912.7,0.4792]
[1763584948670,3.2078,2913.1,2913.0,0.2954]
[1763584948859,4.0361897,2913.1,2913.0,0.2954]
[1763584949467,3.2078,2913.4,2913.0,0.7746]
[1763584949669,0.82844879,2913.3,2913.0,0.7746]
[1763584949966,0.82844879,2913.2,2913.0,0.7746]
[1763584950162,3.2078,2913.4,2913.0,0.7746]
[1763584950367,0.82845376,2913.3,2913.0,0.7746]
[1763584950567,0.82845376,2913.2,2913.0,0.2954]
[1763584950763,3.2078,2913.1,2913.0,0.2954]
[1763584950970,4.03634321,2913.1,2913.0,0.2954]
[1763584951267,4.0363713,2913.1,2913.0,0.2954]
[1763584951463,4.0363713,2913.1,2912.4,0.22289909]
[1763584951666,4.0363713,2913.1,2911.9,3.76476]
[1763584951667,3.2078,2912.8,2911.9,3.2078]
[1763584951961,3.2078,2912.2,2911.8,0.2197]
[1763584952169,3.2078,2911.9,2911.8,0.2197]
[1763584952762,0.0051443,2912.1,2911.8,0.22258934]
[1763584953766,3.2078,2911.9,2911.8,0.22258934]
[1763584954073,4.03648137,2911.9,2911.8,0.00288934]
[1763584954266,4.03648137,2911.9,2911.0,0.2954]
[1763584954570,3.2078,2911.6,2911.0,0.2954]
[1763584954869,0.82873111,2911.5,2911.0,0.2954]
[1763584955073,3.2078,2911.6,2911.0,0.2954]
[1763584955371,3.2078,2911.3,2911.0,0.29967804]
[1763584956874,3.2078,2911.3,2911.0,0.00427804]
[1763584957073,0.82796661,2911.2,2911.0,0.00427804]
[1763584957277,3.2078,2911.3,2911.0,0.00427804]
[1763584957469,0.82738372,2911.2,2911.0,0.00427804]
[1763584957670,0.82738372,2911.1,2910.5,0.2828]
[1763584957973,3.76489,2911.3,2910.5,0.2828]
[1763584957974,3.2078,2910.7,2910.5,0.2828]
[1763584958561,3.2078,2910.7,2910.5,0.28555337]
[1763584958962,3.2078,2910.7,2910.5,0.00275337]
[1763584959170,2.58018771,2910.6,2910.5,0.00275337]
[1763584959471,2.58018771,2910.1,2909.0,0.2828]
[1763584959676,3.2078,2909.6,2909.0,0.2828]
[1763584960271,3.2078,2909.6,2909.5,0.00387841]
[1763584960774,3.21295322,2910.1,2910.0,0.2828]
[1763584961078,0.00515322,2910.1,2910.0,0.7592]
[1763584961281,0.00515322,2910.1,2910.0,0.2828]
[1763584961578,0.00515322,2910.1,2910.0,0.7592]
[1763584962176,3.21295322,2910.1,2910.0,0.2828]
[1763584962367,0.00515322,2910.1,2910.0,0.2828]
[1763584962569,0.00515322,2910.1,2910.0,0.7592]
[1763584964777,3.21295322,2910.1,2910.0,0.2828]
[1763584965873,3.21295322,2910.1,2910.0,0.7592]
[1763584966275,0.00515322,2910.1,2910.0,0.7592]
[1763584967280,3.2078,2911.0,2910.9,0.4764]
[1763584968978,0.00417161,2911.6,2911.0,0.2828]
[1763584969175,0.00417161,2911.6,2911.1,3.2078]
[1763584969378,0.00417161,2911.6,2911.5,0.7592]
[1763584969875,0.00417161,2911.6,2911.5,3.967]
[1763584970278,0.00515322,2911.8,2911.7,0.4764]
[1763584970480,3.2078,2913.1,2911.7,0.4764]
[1763584970678,3.2078,2913.1,2912.5,3.2078]
[1763584970983,3.2078,2913.1,2912.2,3.2078]
[1763584971180,3.2078,2913.1,2912.5,3.2078]
[1763584971376,3.21563335,2913.1,2912.5,3.21725535]
[1763584972080,0.00783335,2913.1,2913.0,0.7592]
[1763584974180,3.2078,2913.6,2913.0,0.7592]
[1763584974479,3.2078,2913.3,2912.5,3.21725535]
[1763584974880,0.4845,2912.6,2912.5,0.00945535]
[1763584975078,0.48892797,2912.6,2912.5,0.00945535]
[1763584976789,0.4845,2912.2,2912.1,3.2078]
[1763584977389,0.4845,2912.2,2911.6,3.2078]
[1763584977786,0.4845,2912.2,2911.6,3.21547584]
[1763584977987,3.2078,2912.0,2911.6,0.00767584]
[1763584980790,3.6923,2911.7,2911.6,0.00767584]
[1763584981188,3.2078,2911.7,2911.6,0.48407584]
[1763584981492,3.6923,2911.7,2911.6,0.00767584]
[1763584982187,0.4845,2911.7,2911.6,0.00767584]
[1763584984992,0.55704,2911.5,2910.6,0.2828]
[1763584985186,3.2078,2911.6,2910.7,3.2078]
[1763584985988,0.00515322,2911.4,2911.0,0.2801]
[1763584986489,0.467,2911.0,2910.9,0.00515322]
[1763584987300,0.00515322,2911.4,2911.0,0.2801]
[1763584987692,0.00515322,2911.4,2911.0,3.4879]
[1763584988391,0.00515322,2911.4,2911.0,0.2801]
[1763584989492,0.467,2911.0,2910.9,0.00515322]
[1763584990197,3.2078,2911.3,2910.9,0.00515322]
[1763584990392,0.00515322,2911.4,2910.9,0.00515322]
[1763584990592,3.2078,2911.3,2911.0,0.2801]
[1763584990791,0.00515322,2911.4,2911.0,0.2801]
[1763584991193,0.00515322,2911.4,2911.3,0.484]
[1763584991492,0.00515322,2911.4,2911.0,0.2801]
[1763584991493,0.47215322,2911.4,2911.0,0.2801]
[1763584991697,0.00515322,2911.4,2911.3,0.484]
[1763584992789,3.2078,2911.9,2911.8,0.484]
[1763584993500,3.2078,2912.3,2911.8,0.484]
[1763584994000,3.21295322,2912.3,2911.8,0.484]
[1763584994899,3.21295322,2912.3,2912.2,0.484]
[1763584995599,0.467,2912.1,2911.5,0.2801]
[1763584995800,3.21295322,2912.3,2911.5,0.2801]
[1763584996299,0.00515322,2912.3,2911.7,3.2078]
[1763584997497,3.21295322,2912.3,2911.5,0.2801]
[1763584997701,0.00515322,2912.3,2911.5,0.2801]
[1763584998006,0.00515322,2912.3,2911.7,3.2078]
[1763584999298,3.21295322,2912.3,2911.7,3.2078]
[1763585000604,0.00515322,2912.3,2912.2,0.484]
[1763585004406,0.47215322,2912.3,2912.0,0.2801]
[1763585005004,0.467,2912.1,2911.8,3.2078]
[1763585005211,0.467,2911.9,2911.8,3.2078]
[1763585005410,3.76984322,2912.3,2911.8,3.2078]
[1763585005803,3.76984322,2912.3,2912.1,3.2078]
[1763585005804,0.56204322,2912.3,2912.1,3.2078]
[1763585006205,0.56204322,2912.3,2912.0,0.2754]
[1763585006513,0.56204322,2912.3,2912.2,0.4404]
[1763585007220,0.99824322,2912.3,2912.0,0.2754]
[1763585008601,0.56204322,2912.3,2912.2,0.4404]
[1763585008807,0.00515322,2912.3,2912.2,0.4404]
[1763585009214,0.00442797,2912.6,2912.5,0.7158]
[1763585009515,0.00442797,2912.6,2912.5,3.9236]
[1763585010709,0.44062797,2912.6,2912.5,3.9236]
[1763585010912,0.44062797,2912.6,2912.5,0.2754]
[1763585011108,0.44062797,2912.6,2912.1,3.2078]
[1763585011910,0.44062797,2912.6,2912.5,0.2716]
[1763585012311,0.00442797,2912.6,2912.5,0.6927]
[1763585017720,0.00442797,2912.6,2912.5,3.9005]
[1763585018719,0.00442797,2912.6,2912.5,0.6927]
[1763585020222,0.00515322,2912.8,2912.7,0.4211]
[1763585021419,0.00889729,2912.8,2912.7,0.4211]
[1763585022520,0.45229729,2912.8,2912.5,3.48455322]
[1763585022728,0.00889729,2912.8,2912.7,0.4211]
[1763585024725,4.12922324,2913.6,2913.2,0.4211]
[1763585024927,0.82506783,2913.5,2913.2,0.4211]
[1763585025224,3.6512,2913.3,2913.0,0.2716]
[1763585025425,0.4434,2913.1,2913.0,0.2716]
[1763585025725,0.44604153,2913.1,2913.0,0.00284742]
[1763585025927,0.44604153,2913.1,2913.0,0.27444742]
[1763585026120,0.00264153,2913.1,2913.0,0.69554742]
[1763585030425,1.00277153,2913.1,2913.0,0.00284742]
[1763585031026,1.82780359,2913.1,2913.0,0.00284742]
[1763585032130,1.00277153,2913.1,2913.0,0.00284742]
[1763585032335,0.55937153,2913.1,2913.0,0.69554742]
[1763585032534,0.00264153,2913.1,2913.0,0.69554742]
[1763585035031,0.44604153,2913.1,2913.0,0.00284742]
[1763585037226,1.27191625,2913.1,2913.0,0.00284742]
[1763585037434,0.00264153,2913.1,2913.0,0.69554742]
[1763585041037,0.44604153,2913.1,2913.0,0.69554742]
[1763585041234,0.00264153,2913.1,2913.0,0.69554742]
[1763585044335,0.00264153,2913.1,2913.0,0.00284742]
[1763585044336,0.44604153,2913.1,2913.0,0.00284742]
[1763585044540,4.22090199,2913.1,2913.0,0.00284742]
[1763585045045,0.3736,2912.6,2912.5,0.00515322]
[1763585045233,3.5814,2912.6,2912.5,0.00515322]
[1763585045436,4.40819866,2912.6,2912.5,0.00515322]
[1763585045931,4.40819866,2912.6,2912.5,0.00860967]
[1763585046329,4.03459866,2912.6,2912.5,0.62520967]
[1763585046543,3.2078,2912.6,2912.5,0.62520967]
[1763585046742,3.2078,2913.0,2912.9,0.3851]
[1763585047235,3.2078,2913.0,2912.5,0.24010967]
[1763585047236,0.00264153,2913.1,2913.0,0.6166]
[1763585055149,3.2078,2913.9,2913.5,0.2315]
[1763585055444,3.2078,2914.2,2914.1,0.3851]
[1763585055751,0.55644,2914.7,2914.0,0.2315]
[1763585055752,1.48334975,2914.7,2914.4,0.3851]
[1763585056042,3.5814,2914.5,2914.0,0.2315]
[1763585056243,3.2078,2914.2,2914.1,0.3851]
[1763585057048,3.21377086,2914.5,2914.4,0.3851]
[1763585059554,0.00597086,2914.5,2914.4,0.3851]
[1763585059751,3.2078,2914.8,2914.7,0.3851]
[1763585059948,3.2078,2915.2,2915.1,0.3851]
[1763585060156,3.4546,2915.5,2915.1,0.3851]
[1763585060347,3.2078,2915.5,2915.4,0.3851]
[1763585060547,3.2078,2915.8,2915.7,0.3851]
[1763585060855,3.2078,2915.8,2915.7,0.38938139]
[1763585060856,3.21074943,2915.8,2915.7,0.38938139]
[1763585061254,0.00294943,2915.8,2915.7,0.38938139]
[1763585064256,2.71074943,2916.2,2916.1,0.3851]
[1763585064655,3.08434943,2916.2,2915.7,0.00428139]
[1763585065052,3.08727337,2916.2,2915.7,0.00428139]
[1763585065560,2.71367337,2916.2,2916.1,0.3851]
[1763585066360,0.00292394,2916.2,2916.1,0.3851]
[1763585066551,3.2078,2916.6,2916.5,0.3998]
[1763585067444,3.21186587,2916.6,2916.5,0.3998]
[1763585067651,3.21186587,2916.6,2916.0,0.2234]
[1763585067957,0.2428,2916.5,2915.9,3.2078]
[1763585068153,3.2078,2916.3,2915.7,0.00428139]
[1763585068352,0.2428,2916.5,2915.7,0.00428139]
[1763585068551,3.2078,2916.3,2915.7,0.00428139]
[1763585068755,0.3972,2915.8,2915.7,0.00428139]
[1763585069656,0.95342,2915.8,2915.7,0.00428139]
[1763585071762,0.3675,2915.6,2915.5,0.00514393]
[1763585071951,3.5753,2915.6,2915.5,0.00514393]
[1763585072759,3.5753,2915.6,2915.5,0.00755946]
[1763585073561,0.55624,2915.7,2915.5,0.40395946]
[1763585074359,3.2078,2915.6,2915.5,0.40395946]
[1763585074661,0.3675,2915.6,2915.5,0.00755946]
[1763585075261,4.13156,2915.6,2915.5,0.00755946]
[1763585075761,0.92376,2915.6,2915.5,0.00755946]
[1763585076063,3.2078,2915.9,2915.5,0.00755946]
[1763585077067,0.00406587,2916.6,2915.8,0.3964]
[1763585077068,3.2078,2916.3,2915.8,0.3964]
[1763585077360,3.2078,2916.3,2916.2,0.3964]
[1763585077958,3.2078,2916.3,2915.5,0.14015946]
[1763585077959,3.21186587,2916.6,2916.5,0.3964]
[1763585078358,0.00406587,2916.6,2916.5,0.3964]
[1763585079765,0.00406587,2916.6,2916.2,3.2078]